Publisher Label,Publisher URI,"Payment Date","Organisational Unit","Beneficiary Name","Amount (£)","Irrecoverable VAT Amount (£)","Purpose","Merchant Category Code"
"Wolverhampton City Council","http://opendatacommunities.org/id/metropolitan-district-council/wolverhampton","28/03/2017","Investments","West Coast Trains","15.00","0.00","Public transport","4112"
"Wolverhampton City Council","http://opendatacommunities.org/id/metropolitan-district-council/wolverhampton","14/03/2017","Executive","DDF BARRIERLINE","6.68","0.00","Subsistence","5812"
"Wolverhampton City Council","http://opendatacommunities.org/id/metropolitan-district-council/wolverhampton","14/03/2017","Executive","GREENMAN","4.25","0.00","Subsistence","5812"
"Wolverhampton City Council","http://opendatacommunities.org/id/metropolitan-district-council/wolverhampton","17/03/2017","Executive","Costa Coffee","3.63","0.00","Subsistence","5812"
"Wolverhampton City Council","http://opendatacommunities.org/id/metropolitan-district-council/wolverhampton","21/03/2017","Executive","CAFFE RITAZZA","6.38","0.00","Subsistence","5813"
"Wolverhampton City Council","http://opendatacommunities.org/id/metropolitan-district-council/wolverhampton","21/03/2017","Executive","Pret A Manger","2.00","0.00","Subsistence","5812"
"Wolverhampton City Council","http://opendatacommunities.org/id/metropolitan-district-council/wolverhampton","21/03/2017","Executive","Pret A Manger","3.35","0.00","Subsistence","5812"
"Wolverhampton City Council","http://opendatacommunities.org/id/metropolitan-district-council/wolverhampton","27/03/2017","Executive","CMT (UK) Ltd","12.40","0.00","Public transport","4121"
"Wolverhampton City Council","http://opendatacommunities.org/id/metropolitan-district-council/wolverhampton","27/03/2017","Executive","WCT Catering","15.33","0.00","Subsistence","5812"
"Wolverhampton City Council","http://opendatacommunities.org/id/metropolitan-district-council/wolverhampton","30/03/2017","Executive","BURGER KING","4.45","0.00","Subsistence","5812"
"Wolverhampton City Council","http://opendatacommunities.org/id/metropolitan-district-council/wolverhampton","06/03/2017","Investments","LUL Ticket Machine","30.00","0.00","Public transport","4112"
"Wolverhampton City Council","http://opendatacommunities.org/id/metropolitan-district-council/wolverhampton","07/03/2017","Investments","Pret A Manger","3.20","0.00","Subsistence","5812"
"Wolverhampton City Council","http://opendatacommunities.org/id/metropolitan-district-council/wolverhampton","07/03/2017","Investments","EDINBURGH TRAMS LIMITED","5.50","0.00","Public transport","4112"
"Wolverhampton City Council","http://opendatacommunities.org/id/metropolitan-district-council/wolverhampton","07/03/2017","Investments","CAFFE NERO","9.10","0.00","Subsistence","5812"
"Wolverhampton City Council","http://opendatacommunities.org/id/metropolitan-district-council/wolverhampton","08/03/2017","Investments","Premier Inn","7.50","0.00","Subsistence","7011"
"Wolverhampton City Council","http://opendatacommunities.org/id/metropolitan-district-council/wolverhampton","10/03/2017","Investments","EDINBURGH TRAMS LIMITED","5.50","0.00","Public transport","4112"
"Wolverhampton City Council","http://opendatacommunities.org/id/metropolitan-district-council/wolverhampton","10/03/2017","Investments","CAFFE NERO","7.65","0.00","Subsistence","5812"
"Wolverhampton City Council","http://opendatacommunities.org/id/metropolitan-district-council/wolverhampton","10/03/2017","Investments","Premier Inn","7.50","0.00","Subsistence","7011"
"Wolverhampton City Council","http://opendatacommunities.org/id/metropolitan-district-council/wolverhampton","27/03/2017","Investments","The Wren","4.17","0.00","Subsistence","5812"
"Wolverhampton City Council","http://opendatacommunities.org/id/metropolitan-district-council/wolverhampton","27/03/2017","Investments","Selfserve Ticket","20.00","0.00","Public transport","4112"
"Wolverhampton City Council","http://opendatacommunities.org/id/metropolitan-district-council/wolverhampton","07/03/2017","Investments","West Coast Trains","182.00","0.00","Public transport","4112"
"Wolverhampton City Council","http://opendatacommunities.org/id/metropolitan-district-council/wolverhampton","07/03/2017","Investments","West Coast Trains","9.00","0.00","Public transport","4112"
"Wolverhampton City Council","http://opendatacommunities.org/id/metropolitan-district-council/wolverhampton","07/03/2017","Investments","BURGER KING","6.20","0.00","Subsistence","5812"
"Wolverhampton City Council","http://opendatacommunities.org/id/metropolitan-district-council/wolverhampton","14/03/2017","Investments","West Coast Trains","6.10","0.00","Subsistence","4112"
"Wolverhampton City Council","http://opendatacommunities.org/id/metropolitan-district-council/wolverhampton","14/03/2017","Investments","West Coast Trains","182.00","0.00","Public transport","4112"
"Wolverhampton City Council","http://opendatacommunities.org/id/metropolitan-district-council/wolverhampton","14/03/2017","Investments","West Coast Trains","7.50","0.00","Public transport","4112"
"Wolverhampton City Council","http://opendatacommunities.org/id/metropolitan-district-council/wolverhampton","28/03/2017","Investments","Costa Coffee","3.13","0.00","Subsistence","5812"
"Wolverhampton City Council","http://opendatacommunities.org/id/metropolitan-district-council/wolverhampton","30/03/2017","Investments","West Coast Trains","9.00","0.00","Public transport","4112"
"Wolverhampton City Council","http://opendatacommunities.org/id/metropolitan-district-council/wolverhampton","30/03/2017","Investments","LUL Ticket Machine","30.00","0.00","Public transport","4112"
"Wolverhampton City Council","http://opendatacommunities.org/id/metropolitan-district-council/wolverhampton","30/03/2017","Investments","BURGER KING","5.16","0.00","Subsistence","5812"
"Wolverhampton City Council","http://opendatacommunities.org/id/metropolitan-district-council/wolverhampton","31/03/2017","Investments","West Coast Trains","7.50","0.00","Public transport","4112"
"Wolverhampton City Council","http://opendatacommunities.org/id/metropolitan-district-council/wolverhampton","15/03/2017","Investments","LUL Ticket Machine","30.00","0.00","Public transport","4112"
"Wolverhampton City Council","http://opendatacommunities.org/id/metropolitan-district-council/wolverhampton","07/03/2017","Investments","CAFFE RITAZZA","2.50","0.00","Subsistence","5813"
"Wolverhampton City Council","http://opendatacommunities.org/id/metropolitan-district-council/wolverhampton","07/03/2017","Investments","WH SMITH","3.99","0.00","Subsistence","5994"
"Wolverhampton City Council","http://opendatacommunities.org/id/metropolitan-district-council/wolverhampton","09/03/2017","Investments","LONDON MIDLAND","9.50","0.00","Public transport","4112"
"Wolverhampton City Council","http://opendatacommunities.org/id/metropolitan-district-council/wolverhampton","10/03/2017","Investments","PENS UNLIMITED","281.50","0.00","Stationery","5943"
"Wolverhampton City Council","http://opendatacommunities.org/id/metropolitan-district-council/wolverhampton","28/03/2017","Investments","WH SMITH","2.54","0.00","Subsistence","5994"
"Wolverhampton City Council","http://opendatacommunities.org/id/metropolitan-district-council/wolverhampton","28/03/2017","Investments","WH SMITH","9.99","0.00","Subsistence","5994"
"Wolverhampton City Council","http://opendatacommunities.org/id/metropolitan-district-council/wolverhampton","06/03/2017","Investments","BIRLEYS SANDWHICHES","4.13","0.00","Subsistence","5812"
"Wolverhampton City Council","http://opendatacommunities.org/id/metropolitan-district-council/wolverhampton","06/03/2017","Investments","LUL Ticket Machine","20.00","0.00","Public transport","4112"
"Wolverhampton City Council","http://opendatacommunities.org/id/metropolitan-district-council/wolverhampton","06/03/2017","Investments","CAFFE NERO","1.58","0.00","Subsistence","5812"
"Wolverhampton City Council","http://opendatacommunities.org/id/metropolitan-district-council/wolverhampton","06/03/2017","Investments","CAFFE NERO","2.00","0.00","Subsistence","5812"
"Wolverhampton City Council","http://opendatacommunities.org/id/metropolitan-district-council/wolverhampton","06/03/2017","Investments","CAFFE NERO","3.65","0.00","Subsistence","5812"
"Wolverhampton City Council","http://opendatacommunities.org/id/metropolitan-district-council/wolverhampton","06/03/2017","Investments","Southbank Centre","2.46","0.00","Subsistence","5812"
"Wolverhampton City Council","http://opendatacommunities.org/id/metropolitan-district-council/wolverhampton","06/03/2017","Investments","Southbank Centre","4.17","0.00","Subsistence","5812"
"Wolverhampton City Council","http://opendatacommunities.org/id/metropolitan-district-council/wolverhampton","07/03/2017","Investments","BIRLEYS SANDWHICHES","6.25","0.00","Subsistence","5812"
"Wolverhampton City Council","http://opendatacommunities.org/id/metropolitan-district-council/wolverhampton","07/03/2017","Investments","CAFFE NERO","3.65","0.00","Subsistence","5812"
"Wolverhampton City Council","http://opendatacommunities.org/id/metropolitan-district-council/wolverhampton","07/03/2017","Investments","CAFFE NERO","1.75","0.00","Subsistence","5812"
"Wolverhampton City Council","http://opendatacommunities.org/id/metropolitan-district-council/wolverhampton","07/03/2017","Investments","CAFFE NERO","1.33","0.00","Subsistence","5812"
"Wolverhampton City Council","http://opendatacommunities.org/id/metropolitan-district-council/wolverhampton","08/03/2017","Investments","Pret A Manger","0.83","0.00","Subsistence","5812"
"Wolverhampton City Council","http://opendatacommunities.org/id/metropolitan-district-council/wolverhampton","08/03/2017","Investments","Taylor St Baristas","4.67","0.00","Subsistence","5813"
"Wolverhampton City Council","http://opendatacommunities.org/id/metropolitan-district-council/wolverhampton","08/03/2017","Investments","Taylor St Baristas","1.30","0.00","Subsistence","5813"
"Wolverhampton City Council","http://opendatacommunities.org/id/metropolitan-district-council/wolverhampton","09/03/2017","Investments","LUL Ticket Machine","20.00","0.00","Public transport","4112"
"Wolverhampton City Council","http://opendatacommunities.org/id/metropolitan-district-council/wolverhampton","09/03/2017","Investments","CAFFE RITAZZA","6.89","0.00","Subsistence","5813"
"Wolverhampton City Council","http://opendatacommunities.org/id/metropolitan-district-council/wolverhampton","14/03/2017","Investments","CAFFE NERO","1.70","0.00","Subsistence","5812"
"Wolverhampton City Council","http://opendatacommunities.org/id/metropolitan-district-council/wolverhampton","14/03/2017","Investments","Tapped and Packed","5.35","0.00","Subsistence","5812"
"Wolverhampton City Council","http://opendatacommunities.org/id/metropolitan-district-council/wolverhampton","24/03/2017","Investments","PATISSERIE VALERIE","4.60","0.00","Subsistence","5812"
"Wolverhampton City Council","http://opendatacommunities.org/id/metropolitan-district-council/wolverhampton","27/03/2017","Investments","CFAUK","240.00","0.00","Training Expenses","8299"
"Wolverhampton City Council","http://opendatacommunities.org/id/metropolitan-district-council/wolverhampton","27/03/2017","Investments","SAINSBURYS","6.45","0.00","Subsistence","5411"
"Wolverhampton City Council","http://opendatacommunities.org/id/metropolitan-district-council/wolverhampton","28/03/2017","Investments","IZ SAINT","4.70","0.00","Subsistence","5812"
"Wolverhampton City Council","http://opendatacommunities.org/id/metropolitan-district-council/wolverhampton","28/03/2017","Investments","CAF� FREI","5.83","0.00","Subsistence","5812"
"Wolverhampton City Council","http://opendatacommunities.org/id/metropolitan-district-council/wolverhampton","28/03/2017","Investments","BIRLEYS SANDWHICHES","5.50","0.00","Subsistence","5812"
"Wolverhampton City Council","http://opendatacommunities.org/id/metropolitan-district-council/wolverhampton","28/03/2017","Investments","LUL Ticket Machine","20.00","0.00","Public transport","4112"
"Wolverhampton City Council","http://opendatacommunities.org/id/metropolitan-district-council/wolverhampton","28/03/2017","Investments","M&S SIMPLY FOOD","3.90","0.00","Subsistence","5812"
"Wolverhampton City Council","http://opendatacommunities.org/id/metropolitan-district-council/wolverhampton","27/03/2017","Investments","WCT Catering","3.33","0.00","Subsistence","5812"
"Wolverhampton City Council","http://opendatacommunities.org/id/metropolitan-district-council/wolverhampton","27/03/2017","Investments","WCT Catering","7.25","0.00","Subsistence","5812"
"Wolverhampton City Council","http://opendatacommunities.org/id/metropolitan-district-council/wolverhampton","27/03/2017","Investments","Premier Inn","358.96","0.00","Accommodation costs","7011"
"Wolverhampton City Council","http://opendatacommunities.org/id/metropolitan-district-council/wolverhampton","08/03/2017","Governance","MI CASA","8.98","0.00","Subsistence","5812"
"Wolverhampton City Council","http://opendatacommunities.org/id/metropolitan-district-council/wolverhampton","09/03/2017","Governance","WEE COFFEE BAR","9.45","0.00","Subsistence","5812"
"Wolverhampton City Council","http://opendatacommunities.org/id/metropolitan-district-council/wolverhampton","10/03/2017","Governance","West Coast Trains","3.50","0.00","Public transport","4112"
"Wolverhampton City Council","http://opendatacommunities.org/id/metropolitan-district-council/wolverhampton","27/03/2017","Governance","WCT Catering","2.75","0.00","Subsistence","5812"
"Wolverhampton City Council","http://opendatacommunities.org/id/metropolitan-district-council/wolverhampton","15/03/2017","Finance","ROYAL MAIL","1.50","0.00","Postage","9402"
"Wolverhampton City Council","http://opendatacommunities.org/id/metropolitan-district-council/wolverhampton","15/03/2017","Finance","ROYAL MAIL","1.50","0.00","Postage","9402"
"Wolverhampton City Council","http://opendatacommunities.org/id/metropolitan-district-council/wolverhampton","30/03/2017","Finance","ROYAL MAIL","3.00","0.00","Postage","9402"
"Wolverhampton City Council","http://opendatacommunities.org/id/metropolitan-district-council/wolverhampton","30/03/2017","Finance","Trainline","333.59","0.00","Public transport","4112"
"Wolverhampton City Council","http://opendatacommunities.org/id/metropolitan-district-council/wolverhampton","30/03/2017","Finance","Trainline","62.73","0.00","Public transport","4112"
"Wolverhampton City Council","http://opendatacommunities.org/id/metropolitan-district-council/wolverhampton","20/03/2017","Governance","Trainline","91.29","0.00","Public transport","4112"
"Wolverhampton City Council","http://opendatacommunities.org/id/metropolitan-district-council/wolverhampton","20/03/2017","Governance","Trainline","94.35","0.00","Public transport","4112"
"Wolverhampton City Council","http://opendatacommunities.org/id/metropolitan-district-council/wolverhampton","20/03/2017","Governance","Trainline","60.69","0.00","Public transport","4112"
"Wolverhampton City Council","http://opendatacommunities.org/id/metropolitan-district-council/wolverhampton","20/03/2017","Governance","Trainline","56.71","0.00","Public transport","4112"
"Wolverhampton City Council","http://opendatacommunities.org/id/metropolitan-district-council/wolverhampton","20/03/2017","Governance","Trainline","56.71","0.00","Public transport","4112"
"Wolverhampton City Council","http://opendatacommunities.org/id/metropolitan-district-council/wolverhampton","20/03/2017","Governance","Trainline","54.67","0.00","Public transport","4112"
"Wolverhampton City Council","http://opendatacommunities.org/id/metropolitan-district-council/wolverhampton","20/03/2017","Governance","Trainline","190.50","0.00","Public transport","4112"
"Wolverhampton City Council","http://opendatacommunities.org/id/metropolitan-district-council/wolverhampton","26/04/2017","Investments","LUL Ticket Machine","50.00","0.00","Public transport","4112"
"Wolverhampton City Council","http://opendatacommunities.org/id/metropolitan-district-council/wolverhampton","26/04/2017","Investments","WCT Catering","4.08","0.00","Subsistence","5812"
"Wolverhampton City Council","http://opendatacommunities.org/id/metropolitan-district-council/wolverhampton","27/04/2017","Investments","West Coast Trains","20.00","0.00","Public transport","4112"
"Wolverhampton City Council","http://opendatacommunities.org/id/metropolitan-district-council/wolverhampton","04/04/2017","Investments","LUL Ticket Machine","20.00","0.00","Public transport","4112"
"Wolverhampton City Council","http://opendatacommunities.org/id/metropolitan-district-council/wolverhampton","28/04/2017","Investments","WSJE SUBSCRIPTIONS","155.00","0.00","Subscriptions","5192"
"Wolverhampton City Council","http://opendatacommunities.org/id/metropolitan-district-council/wolverhampton","06/04/2017","Investments","West Coast Trains","10.00","0.00","Public transport","4112"
"Wolverhampton City Council","http://opendatacommunities.org/id/metropolitan-district-council/wolverhampton","10/04/2017","Investments","West Coast Trains","10.00","0.00","Public transport","4112"
"Wolverhampton City Council","http://opendatacommunities.org/id/metropolitan-district-council/wolverhampton","10/04/2017","Investments","LUL Ticket Machine","20.00","0.00","20","4112"
"Wolverhampton City Council","http://opendatacommunities.org/id/metropolitan-district-council/wolverhampton","05/04/2017","Governance","TROPICSKINCARE","46.45","0.00","Subsistence","5912"
"Wolverhampton City Council","http://opendatacommunities.org/id/metropolitan-district-council/wolverhampton","06/04/2017","Governance","AGODA RESERVATION","351.59","0.00","Accommodation costs","7011"
"Wolverhampton City Council","http://opendatacommunities.org/id/metropolitan-district-council/wolverhampton","06/04/2017","Governance","EUROSTAR","125.00","0.00","Public transport","4112"
"Wolverhampton City Council","http://opendatacommunities.org/id/metropolitan-district-council/wolverhampton","27/04/2017","Governance","MYDRIVER.COM","30.29","0.00","Public transport","4121"
"Wolverhampton City Council","http://opendatacommunities.org/id/metropolitan-district-council/wolverhampton","05/04/2017","Investments","ARTIGIANO","3.79","0.00","Subsistence","5812"
"Wolverhampton City Council","http://opendatacommunities.org/id/metropolitan-district-council/wolverhampton","05/04/2017","Investments","NEDS NOODLE BAR","6.42","0.00","Subsistence","5812"
"Wolverhampton City Council","http://opendatacommunities.org/id/metropolitan-district-council/wolverhampton","06/04/2017","Investments","The Association","1.92","0.00","Subsistence","5812"
"Wolverhampton City Council","http://opendatacommunities.org/id/metropolitan-district-council/wolverhampton","06/04/2017","Investments","CHILANGO'S LONDON","6.98","0.00","Subsistence","5812"
"Wolverhampton City Council","http://opendatacommunities.org/id/metropolitan-district-council/wolverhampton","11/04/2017","Investments","Tapped and Packed","2.37","0.00","Subsistence","5812"
"Wolverhampton City Council","http://opendatacommunities.org/id/metropolitan-district-council/wolverhampton","11/04/2017","Investments","Pret A Manger","3.45","0.00","Subsistence","5812"
"Wolverhampton City Council","http://opendatacommunities.org/id/metropolitan-district-council/wolverhampton","11/04/2017","Investments","Pret A Manger","1.42","0.00","Subsistence","5812"
"Wolverhampton City Council","http://opendatacommunities.org/id/metropolitan-district-council/wolverhampton","11/04/2017","Investments","BENUGO BIRMINGHAM","1.50","0.00","Subsistence","5812"
"Wolverhampton City Council","http://opendatacommunities.org/id/metropolitan-district-council/wolverhampton","11/04/2017","Investments","BENUGO BIRMINGHAM","2.42","0.00","Subsistence","5812"
"Wolverhampton City Council","http://opendatacommunities.org/id/metropolitan-district-council/wolverhampton","06/04/2017","Governance","GREGGS PLC","3.70","0.00","Subsistence","5812"
"Wolverhampton City Council","http://opendatacommunities.org/id/metropolitan-district-council/wolverhampton","06/04/2017","Governance","GREGGS PLC","5.30","0.00","Subsistence","5812"
"Wolverhampton City Council","http://opendatacommunities.org/id/metropolitan-district-council/wolverhampton","30/05/2017","Investments","TRINACRIA FOOD","7.00","0.00","Subsistence","5812"
"Wolverhampton City Council","http://opendatacommunities.org/id/metropolitan-district-council/wolverhampton","30/05/2017","Investments","M&S SIMPLY FOOD","10.08","0.00","Subsistence","5812"
"Wolverhampton City Council","http://opendatacommunities.org/id/metropolitan-district-council/wolverhampton","30/05/2017","Investments","ALL BAR ONE","5.00","0.00","Subsistence","5812"
"Wolverhampton City Council","http://opendatacommunities.org/id/metropolitan-district-council/wolverhampton","30/05/2017","Investments","ALL BAR ONE","35.00","0.00","Subsistence","5812"
"Wolverhampton City Council","http://opendatacommunities.org/id/metropolitan-district-council/wolverhampton","31/05/2017","Investments","West Coast Trains","20.00","0.00","Public transport","4112"
"Wolverhampton City Council","http://opendatacommunities.org/id/metropolitan-district-council/wolverhampton","31/05/2017","Investments","M&S SIMPLY FOOD","9.63","0.00","Subsistence","5812"
"Wolverhampton City Council","http://opendatacommunities.org/id/metropolitan-district-council/wolverhampton","31/05/2017","Investments","BURGER KING","5.32","0.00","Subsistence","5812"
"Wolverhampton City Council","http://opendatacommunities.org/id/metropolitan-district-council/wolverhampton","15/05/2017","Executive","PP*XC TRAINS CATERING BIRMINGHAM","17.90","0.00","Public transport","4112"
"Wolverhampton City Council","http://opendatacommunities.org/id/metropolitan-district-council/wolverhampton","15/05/2017","Executive","DE VERE COTSWOLD WATER SOUTH CERNEY","51.08","0.00","Public transport","4112"
"Wolverhampton City Council","http://opendatacommunities.org/id/metropolitan-district-council/wolverhampton","17/05/2017","Executive","PP*XC TRAINS CATERING BIRMINGHAM","2.50","0.00","Public transport","4112"
"Wolverhampton City Council","http://opendatacommunities.org/id/metropolitan-district-council/wolverhampton","19/05/2017","Executive","Costa Coffee","4.00","0.00","Subsistence","5812"
"Wolverhampton City Council","http://opendatacommunities.org/id/metropolitan-district-council/wolverhampton","22/05/2017","Executive","Starbucks","6.53","0.00","Subsistence","5812"
"Wolverhampton City Council","http://opendatacommunities.org/id/metropolitan-district-council/wolverhampton","25/05/2017","Executive","WCT Catering","3.80","0.00","Subsistence","5812"
"Wolverhampton City Council","http://opendatacommunities.org/id/metropolitan-district-council/wolverhampton","25/05/2017","Executive","West Coast Trains","29.00","0.00","Public transport","4112"
"Wolverhampton City Council","http://opendatacommunities.org/id/metropolitan-district-council/wolverhampton","31/05/2017","Executive","Pret A Manger","3.08","0.00","Subsistence","5812"
"Wolverhampton City Council","http://opendatacommunities.org/id/metropolitan-district-council/wolverhampton","03/05/2017","Governance","RIVERFORD.CO.UK","25.81","0.00","Subsistence","5499"
"Wolverhampton City Council","http://opendatacommunities.org/id/metropolitan-district-council/wolverhampton","04/05/2017","Governance","ICELAND","1.71","0.00","Subsistence","5411"
"Wolverhampton City Council","http://opendatacommunities.org/id/metropolitan-district-council/wolverhampton","09/05/2017","Governance","ICELAND","3.75","0.00","Subsistence","5411"
"Wolverhampton City Council","http://opendatacommunities.org/id/metropolitan-district-council/wolverhampton","10/05/2017","Governance","RIVERFORD.CO.UK","25.81","0.00","Subsistence","5499"
"Wolverhampton City Council","http://opendatacommunities.org/id/metropolitan-district-council/wolverhampton","17/05/2017","Governance","RIVERFORD.CO.UK","25.81","0.00","Subsistence","5499"
"Wolverhampton City Council","http://opendatacommunities.org/id/metropolitan-district-council/wolverhampton","24/05/2017","Governance","RIVERFORD.CO.UK","25.81","0.00","Subsistence","5499"
"Wolverhampton City Council","http://opendatacommunities.org/id/metropolitan-district-council/wolverhampton","31/05/2017","Governance","RIVERFORD.CO.UK","25.81","0.00","Subsistence","5499"
"Wolverhampton City Council","http://opendatacommunities.org/id/metropolitan-district-council/wolverhampton","03/05/2017","Investments","LUL Ticket Machine","30.00","0.00","Public transport","4112"
"Wolverhampton City Council","http://opendatacommunities.org/id/metropolitan-district-council/wolverhampton","03/05/2017","Investments","WCT Catering","5.60","0.00","Subsistence","5812"
"Wolverhampton City Council","http://opendatacommunities.org/id/metropolitan-district-council/wolverhampton","03/05/2017","Investments","West Coast Trains","10.00","0.00","Public transport","4112"
"Wolverhampton City Council","http://opendatacommunities.org/id/metropolitan-district-council/wolverhampton","03/05/2017","Investments","EAT LTD","3.05","0.00","Subsistence","5812"
"Wolverhampton City Council","http://opendatacommunities.org/id/metropolitan-district-council/wolverhampton","03/05/2017","Investments","PP*XC TRAINS CATERING BIRMINGHAM","5.50","0.00","Subsistence","4112"
"Wolverhampton City Council","http://opendatacommunities.org/id/metropolitan-district-council/wolverhampton","18/05/2017","Investments","Selfserve Ticket","87.00","0.00","Public transport","4112"
"Wolverhampton City Council","http://opendatacommunities.org/id/metropolitan-district-council/wolverhampton","18/05/2017","Investments","West Coast Trains","24.00","0.00","Public transport","4112"
"Wolverhampton City Council","http://opendatacommunities.org/id/metropolitan-district-council/wolverhampton","18/05/2017","Investments","UPPER CRUST","6.07","0.00","Subsistence","5812"
"Wolverhampton City Council","http://opendatacommunities.org/id/metropolitan-district-council/wolverhampton","18/05/2017","Investments","GRAND HARBOUR HOTEL","176.25","0.00","Accommodation costs","7011"
"Wolverhampton City Council","http://opendatacommunities.org/id/metropolitan-district-council/wolverhampton","18/05/2017","Investments","POST OFFICE","401.45","0.00","Postage","9402"
"Wolverhampton City Council","http://opendatacommunities.org/id/metropolitan-district-council/wolverhampton","24/05/2017","Investments","LONDON & SOUTH EAST LONDON","50.00","0.00","Public transport","4112"
"Wolverhampton City Council","http://opendatacommunities.org/id/metropolitan-district-council/wolverhampton","31/05/2017","Investments","CMT (UK) Ltd","10.80","0.00","Public transport","4121"
"Wolverhampton City Council","http://opendatacommunities.org/id/metropolitan-district-council/wolverhampton","30/05/2017","Investments","TUTTONS BRASSERIE","28.86","0.00","Subsistence","5812"
"Wolverhampton City Council","http://opendatacommunities.org/id/metropolitan-district-council/wolverhampton","31/05/2017","Investments","UPPER CRUST","6.58","0.00","Subsistence","5812"
"Wolverhampton City Council","http://opendatacommunities.org/id/metropolitan-district-council/wolverhampton","12/05/2017","Investments","LAST MINUTE.COM HOTEL","162.00","0.00","Accommodation costs","7011"
"Wolverhampton City Council","http://opendatacommunities.org/id/metropolitan-district-council/wolverhampton","17/05/2017","Investments","Zizzi","17.96","0.00","Subsistence","5812"
"Wolverhampton City Council","http://opendatacommunities.org/id/metropolitan-district-council/wolverhampton","17/05/2017","Investments","The Boltons Hotel","12.50","0.00","Accommodation costs","7011"
"Wolverhampton City Council","http://opendatacommunities.org/id/metropolitan-district-council/wolverhampton","18/05/2017","Governance","1&1 INTERNET LTD","53.50","0.00","Subscriptions","4816"
"Wolverhampton City Council","http://opendatacommunities.org/id/metropolitan-district-council/wolverhampton","03/05/2017","Governance","RYMAN","4.99","0.00","Stationery","5943"
"Wolverhampton City Council","http://opendatacommunities.org/id/metropolitan-district-council/wolverhampton","03/05/2017","Investments","LUL Ticket Machine","20.00","0.00","Public transport","4112"
"Wolverhampton City Council","http://opendatacommunities.org/id/metropolitan-district-council/wolverhampton","03/05/2017","Investments","M&S SIMPLY FOOD","2.80","0.00","Subsistence","5812"
"Wolverhampton City Council","http://opendatacommunities.org/id/metropolitan-district-council/wolverhampton","04/05/2017","Investments","VITA CAF 2 LTD","4.80","0.00","Subsistence","5812"
"Wolverhampton City Council","http://opendatacommunities.org/id/metropolitan-district-council/wolverhampton","05/05/2017","Investments","IZ SAINT","5.45","0.00","Subsistence","5812"
"Wolverhampton City Council","http://opendatacommunities.org/id/metropolitan-district-council/wolverhampton","05/05/2017","Investments","IZ SAINT","2.30","0.00","Subsistence","5812"
"Wolverhampton City Council","http://opendatacommunities.org/id/metropolitan-district-council/wolverhampton","10/05/2017","Investments","M&S SIMPLY FOOD","2.83","0.00","Subsistence","5812"
"Wolverhampton City Council","http://opendatacommunities.org/id/metropolitan-district-council/wolverhampton","15/05/2017","Investments","BOOTS","1.25","0.00","Subsistence","5912"
"Wolverhampton City Council","http://opendatacommunities.org/id/metropolitan-district-council/wolverhampton","15/05/2017","Investments","IZ SAINT","3.75","0.00","Subsistence","5812"
"Wolverhampton City Council","http://opendatacommunities.org/id/metropolitan-district-council/wolverhampton","15/05/2017","Investments","LUL Ticket Machine","20.00","0.00","Public transport","4112"
"Wolverhampton City Council","http://opendatacommunities.org/id/metropolitan-district-council/wolverhampton","15/05/2017","Investments","M&S SIMPLY FOOD","3.75","0.00","Subsistence","5812"
"Wolverhampton City Council","http://opendatacommunities.org/id/metropolitan-district-council/wolverhampton","22/05/2017","Investments","SAINSBURYS","4.41","0.00","Subsistence","5411"
"Wolverhampton City Council","http://opendatacommunities.org/id/metropolitan-district-council/wolverhampton","22/05/2017","Investments","ARTIGIANO","3.50","0.00","Subsistence","5812"
"Wolverhampton City Council","http://opendatacommunities.org/id/metropolitan-district-council/wolverhampton","22/05/2017","Investments","GET THE FOCACCIA","5.83","0.00","Subsistence","5812"
"Wolverhampton City Council","http://opendatacommunities.org/id/metropolitan-district-council/wolverhampton","22/05/2017","Investments","HARRYS FINE FOODS","3.85","0.00","Subsistence","5812"
"Wolverhampton City Council","http://opendatacommunities.org/id/metropolitan-district-council/wolverhampton","25/05/2017","Investments","IZ NINCOMSOUP LTD","2.80","0.00","Subsistence","5814"
"Wolverhampton City Council","http://opendatacommunities.org/id/metropolitan-district-council/wolverhampton","22/05/2017","Finance","Virgin Trains","107.00","0.00","Public transport","4112"
"Wolverhampton City Council","http://opendatacommunities.org/id/metropolitan-district-council/wolverhampton","22/05/2017","Finance","Virgin Trains","128.00","0.00","Public transport","4112"
"Wolverhampton City Council","http://opendatacommunities.org/id/metropolitan-district-council/wolverhampton","22/05/2017","Finance","Virgin Trains","96.00","0.00","Public transport","4112"
"Wolverhampton City Council","http://opendatacommunities.org/id/metropolitan-district-council/wolverhampton","23/05/2017","Finance","Premier Inn","122.08","0.00","Accommodation costs","7011"
"Wolverhampton City Council","http://opendatacommunities.org/id/metropolitan-district-council/wolverhampton","23/05/2017","Finance","Virgin Trains","128.00","0.00","Public transport","4112"
"Wolverhampton City Council","http://opendatacommunities.org/id/metropolitan-district-council/wolverhampton","23/05/2017","Finance","Virgin Trains","147.00","0.00","Public transport","4112"
"Wolverhampton City Council","http://opendatacommunities.org/id/metropolitan-district-council/wolverhampton","23/05/2017","Finance","Virgin Trains","72.00","0.00","Public transport","4112"
"Wolverhampton City Council","http://opendatacommunities.org/id/metropolitan-district-council/wolverhampton","23/05/2017","Finance","Virgin Trains","70.10","0.00","Public transport","4112"
"Wolverhampton City Council","http://opendatacommunities.org/id/metropolitan-district-council/wolverhampton","23/05/2017","Finance","Virgin Trains","163.00","0.00","Public transport","4112"
"Wolverhampton City Council","http://opendatacommunities.org/id/metropolitan-district-council/wolverhampton","25/05/2017","Finance","Premier Inn","348.00","0.00","Accommodation costs","7011"
"Wolverhampton City Council","http://opendatacommunities.org/id/metropolitan-district-council/wolverhampton","25/05/2017","Finance","Virgin Trains","(36.00)","0.00","Public transport","4112"
"Wolverhampton City Council","http://opendatacommunities.org/id/metropolitan-district-council/wolverhampton","20/02/2017","Executive","Costa Coffee","1.65","0.00","Subsistence","5812"
"Wolverhampton City Council","http://opendatacommunities.org/id/metropolitan-district-council/wolverhampton","20/02/2017","Investments","West Coast Trains","6.40","0.00","Subsistence","4112"
"Wolverhampton City Council","http://opendatacommunities.org/id/metropolitan-district-council/wolverhampton","20/02/2017","Investments","West Coast Trains","91.00","0.00","Public Transport","4112"
"Wolverhampton City Council","http://opendatacommunities.org/id/metropolitan-district-council/wolverhampton","20/02/2017","Governance","1&1 INTERNET LTD","53.50","0.00","Subscriptions","4816"
"Wolverhampton City Council","http://opendatacommunities.org/id/metropolitan-district-council/wolverhampton","21/02/2017","Governance","Amazon","16.98","0.00","Equipment - Purchase","5943"
"Wolverhampton City Council","http://opendatacommunities.org/id/metropolitan-district-council/wolverhampton","22/02/2017","Executive","Gourmet Coffee Bar","3.71","0.00","Subsistence","5812"
"Wolverhampton City Council","http://opendatacommunities.org/id/metropolitan-district-council/wolverhampton","22/02/2017","Executive","Gourmet Coffee Bar","1.55","0.00","Subsistence","5812"
"Wolverhampton City Council","http://opendatacommunities.org/id/metropolitan-district-council/wolverhampton","22/02/2017","Governance","Riverford","25.81","0.00","Subsistence","5499"
"Wolverhampton City Council","http://opendatacommunities.org/id/metropolitan-district-council/wolverhampton","27/02/2017","Governance","ISUU","15.78","0.00","Subscriptions","5192"
"Wolverhampton City Council","http://opendatacommunities.org/id/metropolitan-district-council/wolverhampton","28/02/2017","Investments","Virgin Trains","182.00","0.00","Public Transport","4112"
"Wolverhampton City Council","http://opendatacommunities.org/id/metropolitan-district-council/wolverhampton","28/02/2017","Governance","Trainline","94.35","0.00","Public Transport","4112"
"Wolverhampton City Council","http://opendatacommunities.org/id/metropolitan-district-council/wolverhampton","28/02/2017","Governance","Trainline","34.43","0.00","Public Transport","4112"
"Wolverhampton City Council","http://opendatacommunities.org/id/metropolitan-district-council/wolverhampton","01/03/2017","Investments","West Coast Trains","7.50","0.00","Parking Fees","4112"
"Wolverhampton City Council","http://opendatacommunities.org/id/metropolitan-district-council/wolverhampton","01/03/2017","Investments","Past Shop Barrierline","6.49","0.00","Subsistence","5812"
"Wolverhampton City Council","http://opendatacommunities.org/id/metropolitan-district-council/wolverhampton","01/03/2017","Investments","West Coast Trains","6.50","0.00","Subsistence","4112"
"Wolverhampton City Council","http://opendatacommunities.org/id/metropolitan-district-council/wolverhampton","01/03/2017","Investments","LUL Ticket Machine","30.00","0.00","Public Transport","4112"
"Wolverhampton City Council","http://opendatacommunities.org/id/metropolitan-district-council/wolverhampton","01/03/2017","Governance","Riverford","25.81","0.00","Subsistence","5499"
"Wolverhampton City Council","http://opendatacommunities.org/id/metropolitan-district-council/wolverhampton","01/03/2017","Governance","Virgin Trains","30.00","0.00","Public Transport","4112"
"Wolverhampton City Council","http://opendatacommunities.org/id/metropolitan-district-council/wolverhampton","01/03/2017","Governance","Virgin Trains","91.00","0.00","Public Transport","4112"
"Wolverhampton City Council","http://opendatacommunities.org/id/metropolitan-district-council/wolverhampton","01/03/2017","Governance","Virgin Trains","158.00","0.00","Public Transport","4112"
"Wolverhampton City Council","http://opendatacommunities.org/id/metropolitan-district-council/wolverhampton","15/06/2017","Investments","West Coast Trains","10.00","0.00","Public transport","4112"
"Wolverhampton City Council","http://opendatacommunities.org/id/metropolitan-district-council/wolverhampton","02/07/2017","Investments","CFAUK","240.00","0.00","Training Expenses","8299"
"Wolverhampton City Council","http://opendatacommunities.org/id/metropolitan-district-council/wolverhampton","27/06/2017","Executive","Taxi Fair By Verifone","16.00","0.00","Public transport","4121"
"Wolverhampton City Council","http://opendatacommunities.org/id/metropolitan-district-council/wolverhampton","28/06/2017","Executive","Taxi Fair By Verifone","19.00","0.00","Public transport","4121"
"Wolverhampton City Council","http://opendatacommunities.org/id/metropolitan-district-council/wolverhampton","28/06/2017","Executive","WCT Catering","3.08","0.00","Subsistence","5812"
"Wolverhampton City Council","http://opendatacommunities.org/id/metropolitan-district-council/wolverhampton","07/06/2017","Governance","RIVERFORD.CO.UK","25.45","0.00","Subsistence","5499"
"Wolverhampton City Council","http://opendatacommunities.org/id/metropolitan-district-council/wolverhampton","11/06/2017","Governance","ASDA","26.00","0.00","Stationery","5411"
"Wolverhampton City Council","http://opendatacommunities.org/id/metropolitan-district-council/wolverhampton","14/06/2017","Governance","RIVERFORD.CO.UK","25.45","0.00","Subsistence","5499"
"Wolverhampton City Council","http://opendatacommunities.org/id/metropolitan-district-council/wolverhampton","20/06/2017","Governance","Virgin Trains","167.10","0.00","Public transport","4112"
"Wolverhampton City Council","http://opendatacommunities.org/id/metropolitan-district-council/wolverhampton","20/06/2017","Governance","West Coast Trains","222.10","0.00","Public transport","4112"
"Wolverhampton City Council","http://opendatacommunities.org/id/metropolitan-district-council/wolverhampton","21/06/2017","Governance","RIVERFORD.CO.UK","25.45","0.00","Subsistence","5499"
"Wolverhampton City Council","http://opendatacommunities.org/id/metropolitan-district-council/wolverhampton","21/06/2017","Governance","Virgin Trains","176.00","0.00","Public transport","4112"
"Wolverhampton City Council","http://opendatacommunities.org/id/metropolitan-district-council/wolverhampton","23/06/2017","Governance","ICELAND","1.25","0.00","Subsistence","5411"
"Wolverhampton City Council","http://opendatacommunities.org/id/metropolitan-district-council/wolverhampton","23/06/2017","Governance","RYMAN","14.98","0.00","Stationery","5943"
"Wolverhampton City Council","http://opendatacommunities.org/id/metropolitan-district-council/wolverhampton","23/06/2017","Governance","GREGGS PLC","12.40","0.00","Subsistence","5812"
"Wolverhampton City Council","http://opendatacommunities.org/id/metropolitan-district-council/wolverhampton","28/06/2017","Governance","RIVERFORD.CO.UK","25.45","0.00","Subsistence","5499"
"Wolverhampton City Council","http://opendatacommunities.org/id/metropolitan-district-council/wolverhampton","07/06/2017","Investments","Selfserve Ticket","20.00","0.00","Public transport","4112"
"Wolverhampton City Council","http://opendatacommunities.org/id/metropolitan-district-council/wolverhampton","12/06/2017","Investments","LUL Ticket Machine","30.00","0.00","Public transport","4112"
"Wolverhampton City Council","http://opendatacommunities.org/id/metropolitan-district-council/wolverhampton","13/06/2017","Investments","The Wren","4.50","0.00","Subsistence","5812"
"Wolverhampton City Council","http://opendatacommunities.org/id/metropolitan-district-council/wolverhampton","15/06/2017","Investments","Selfserve Ticket","20.00","0.00","Public transport","4112"
"Wolverhampton City Council","http://opendatacommunities.org/id/metropolitan-district-council/wolverhampton","15/06/2017","Investments","St Pancras International","6.95","0.00","Subsistence","5812"
"Wolverhampton City Council","http://opendatacommunities.org/id/metropolitan-district-council/wolverhampton","30/06/2017","Investments","CAFFE NERO","3.85","0.00","Subsistence","5812"
"Wolverhampton City Council","http://opendatacommunities.org/id/metropolitan-district-council/wolverhampton","19/06/2017","Governance","1&1 INTERNET LTD","57.58","0.00","Subscriptions","4816"
"Wolverhampton City Council","http://opendatacommunities.org/id/metropolitan-district-council/wolverhampton","02/06/2017","Investments","West Coast Trains","185.00","0.00","Public transport","4112"
"Wolverhampton City Council","http://opendatacommunities.org/id/metropolitan-district-council/wolverhampton","02/06/2017","Investments","West Coast Trains","10.00","0.00","Public transport","4112"
"Wolverhampton City Council","http://opendatacommunities.org/id/metropolitan-district-council/wolverhampton","02/06/2017","Investments","BENUGO BIRMINGHAM","5.70","0.00","Subsistence","5812"
"Wolverhampton City Council","http://opendatacommunities.org/id/metropolitan-district-council/wolverhampton","26/06/2017","Investments","West Coast Trains","10.00","0.00","Public transport","4112"
"Wolverhampton City Council","http://opendatacommunities.org/id/metropolitan-district-council/wolverhampton","13/06/2017","Investments","West Coast Trains","10.00","0.00","Public transport","4112"
"Wolverhampton City Council","http://opendatacommunities.org/id/metropolitan-district-council/wolverhampton","15/06/2017","Investments","PP*FITST ONBOARD TAMWORTH","8.37","0.00","Subsistence","4112"
"Wolverhampton City Council","http://opendatacommunities.org/id/metropolitan-district-council/wolverhampton","15/06/2017","Investments","West Coast Trains","10.00","0.00","Public transport","4112"
"Wolverhampton City Council","http://opendatacommunities.org/id/metropolitan-district-council/wolverhampton","27/06/2017","Investments","LUL Ticket Machine","30.00","0.00","Public transport","4112"
"Wolverhampton City Council","http://opendatacommunities.org/id/metropolitan-district-council/wolverhampton","27/06/2017","Investments","WCT Catering","8.50","0.00","Subsistence","5812"
"Wolverhampton City Council","http://opendatacommunities.org/id/metropolitan-district-council/wolverhampton","27/06/2017","Investments","West Coast Trains","10.00","0.00","Public transport","4112"
"Wolverhampton City Council","http://opendatacommunities.org/id/metropolitan-district-council/wolverhampton","09/06/2017","Investments","LEXINGTON HOTEL NYC","1,223.54","0.00","Accommodation costs","7011"
